bitfinex-derivatives/quotes_BTCF0:USTF0_20230102
["timestamp","ask_amount","ask_price","bid_price","bid_amount"]
[1672635234184,0.7493,16654.0,16653.0,0.3517]
[1672635234601,1.6499,16654.0,16653.0,0.3517]
[1672635235020,1.6499,16654.0,16653.0,0.051]
[1672635237653,1.6499,16654.0,16651.0,0.3007]
[1672635237869,1.2006,16654.0,16653.0,0.051]
[1672635238084,1.6499,16654.0,16652.0,0.3007]
[1672635238392,1.6499,16654.0,16650.0,0.3007]
[1672635238393,1.0507,16652.0,16650.0,0.3007]
[1672635238599,0.4493,16651.0,16650.0,0.3007]
[1672635239959,0.4493,16651.0,16650.0,0.4417]
[1672635241955,0.4493,16651.0,16650.0,0.141]
[1672635242164,0.4493,16651.0,16650.0,0.4417]
[1672635246892,0.4493,16651.0,16650.0,0.1408129]
[1672635247102,0.4493,16651.0,16650.0,0.4415129]
[1672635252677,0.4493,16651.0,16650.0,0.1408129]
[1672635252882,0.4493,16651.0,16650.0,0.4415129]
[1672635260663,0.4493,16651.0,16650.0,0.1408129]
[1672635260868,0.4493,16651.0,16650.0,0.4415129]
[1672635261714,0.4493,16651.0,16650.0,0.1408129]
[1672635261917,0.4493,16651.0,16650.0,0.4415129]
[1672635276961,0.4493,16651.0,16650.0,0.1408129]
[1672635277180,0.4493,16651.0,16650.0,0.4415129]
[1672635294623,0.4493,16651.0,16650.0,0.1408129]
[1672635298831,0.4493,16651.0,16650.0,0.14069046]
[1672635300094,0.4493,16651.0,16650.0,0.44139046]
[1672635303028,0.4493,16651.0,16650.0,0.14069046]
[1672635303243,0.4493,16651.0,16650.0,0.44139046]
[1672635315748,0.4493,16651.0,16650.0,0.14069046]
[1672635348002,0.4493,16651.0,16650.0,0.44139046]
[1672635349688,0.4493,16651.0,16650.0,0.14069046]
[1672635349901,0.4493,16651.0,16650.0,0.44139046]
[1672635351158,0.4493,16651.0,16650.0,0.14069046]
[1672635353896,0.4493,16651.0,16650.0,0.44120271]
[1672635354103,0.2992,16651.0,16650.0,0.44120271]
[1672635354314,0.1491,16651.0,16650.0,0.44120271]
[1672635361038,0.4479,16651.0,16650.0,0.14050271]
[1672635362928,0.4489,16651.0,16650.0,0.136]
[1672635363668,0.4479,16651.0,16650.0,0.06]
[1672635368184,0.4629,16651.0,16649.0,0.3007]
[1672635368394,0.2994,16650.0,16649.0,0.3007]
[1672635369342,0.2994,16650.0,16649.0,0.3607]
[1672635369758,0.2994,16650.0,16649.0,0.3007]
[1672635369973,0.2994,16650.0,16649.0,0.3607]
[1672635371759,0.2994,16650.0,16649.0,0.06]
[1672635390680,0.2994,16650.0,16648.0,0.8007]
[1672635390899,0.4508,16651.0,16649.0,0.06]
[1672635391101,0.2995,16650.0,16649.0,0.06]
[1672635402773,0.2995,16650.0,16649.0,0.3607]
[1672635403298,0.2995,16650.0,16649.0,0.36046247]
[1672635403921,0.2995,16650.0,16649.0,0.3007]
[1672635404126,0.2995,16650.0,16649.0,0.3597]
[1672635405182,0.3155,16650.0,16649.0,0.3007]
[1672635405817,0.3155,16650.0,16648.0,0.5]
[1672635406023,0.2992,16649.0,16648.0,0.8007]
[1672635406651,0.2992,16649.0,16648.0,0.8597]
[1672635407603,0.2992,16649.0,16648.0,0.559]
[1672635407809,0.2992,16649.0,16648.0,0.8597]
[1672635411280,0.29904658,16649.0,16648.0,0.8597]
[1672635415688,0.29904658,16649.0,16648.0,0.559]
[1672635416119,0.29904658,16649.0,16648.0,0.8597]
[1672635418738,0.29904658,16649.0,16648.0,0.559]
[1672635418948,0.29904658,16649.0,16648.0,0.8597]
[1672635419685,0.29904658,16649.0,16648.0,0.559]
[1672635419900,0.29904658,16649.0,16648.0,0.8597]
[1672635425582,0.29904658,16649.0,16648.0,0.559]
[1672635425898,0.29904658,16649.0,16648.0,0.8597]
[1672635428530,0.29904658,16649.0,16648.0,0.559]
[1672635429055,0.29904658,16649.0,16648.0,0.8597]
[1672635429367,0.29904658,16649.0,16648.0,0.559]
[1672635429572,0.29904658,16649.0,16648.0,0.8597]
[1672635429996,0.29904658,16649.0,16648.0,0.559]
[1672635430421,0.29904658,16649.0,16648.0,0.8597]
[1672635433672,0.29904658,16649.0,16648.0,0.559]
[1672635434092,0.29904658,16649.0,16648.0,0.8597]
[1672635443661,0.29904658,16649.0,16648.0,0.559]
[1672635444086,0.29904658,16649.0,16648.0,0.8597]
[1672635450922,0.29904658,16649.0,16648.0,0.559]
[1672635451131,0.29904658,16649.0,16648.0,0.8597]
[1672635454386,0.29904658,16649.0,16648.0,0.559]
[1672635454594,0.29904658,16649.0,16648.0,0.8597]
[1672635460592,0.29904658,16649.0,16648.0,0.85953475]
[1672635463847,0.29904658,16649.0,16648.0,0.55883475]
[1672635464065,0.29904658,16649.0,16648.0,0.85953475]
[1672635466894,0.29904658,16649.0,16648.0,0.55883475]
[1672635467113,0.29904658,16649.0,16648.0,0.85953475]
[1672635467848,0.29904658,16649.0,16648.0,0.55883475]
[1672635468175,0.29904658,16649.0,16648.0,0.85953475]
[1672635468377,0.29904658,16649.0,16648.0,0.55883475]
[1672635468585,0.29904658,16649.0,16648.0,0.85953475]
[1672635468797,0.29904658,16649.0,16648.0,0.55883475]
[1672635469005,0.29904658,16649.0,16648.0,0.85953475]
[1672635471318,0.29904658,16649.0,16648.0,0.3597]
[1672635471528,0.44824658,16649.0,16648.0,0.059]
[1672635483310,0.44824658,16649.0,16648.0,0.3597]
[1672635486561,0.44824658,16649.0,16648.0,0.059]
[1672635491093,0.44824658,16649.0,16648.0,0.3597]
[1672635495078,0.44824658,16649.0,16648.0,0.059]
[1672635513803,0.44824658,16649.0,16648.0,0.05891584]
[1672635524638,0.44874658,16649.0,16648.0,0.05891584]
[1672635529989,0.44874658,16649.0,16648.0,0.35961584]
[1672635532619,0.44874658,16649.0,16648.0,0.05891584]
[1672635532823,0.44874658,16649.0,16648.0,0.35961584]
[1672635534405,0.44874658,16649.0,16648.0,0.05891584]
[1672635534612,0.44874658,16649.0,16648.0,0.35961584]
[1672635535445,0.44874658,16649.0,16648.0,0.05891584]
[1672635535663,0.44874658,16649.0,16648.0,0.35961584]
[1672635563427,0.44874658,16649.0,16648.0,0.35943452]
[1672635574558,0.4489,16649.0,16648.0,0.35943452]
[1672635582760,0.1496,16649.0,16648.0,0.35943452]
[1672635582974,0.9467,16654.0,16648.0,0.95893452]
[1672635583179,0.1512,16654.0,16651.0,0.3007]
[1672635583709,0.1512,16654.0,16653.0,0.3007]
[1672635584023,0.3013,16654.0,16653.0,0.3007]
[1672635584545,0.1501,16654.0,16653.0,0.3007]
[1672635584762,0.3147,16654.0,16653.0,0.3107]
[1672635589378,0.31456034,16654.0,16653.0,0.3107]
[1672635602934,0.29956034,16654.0,16653.0,0.3007]
[1672635603153,0.31356034,16654.0,16653.0,0.3087]
[1672635604624,0.16396034,16654.0,16653.0,0.3087]
[1672635609242,0.16396034,16654.0,16653.0,0.3007]
[1672635614607,0.1634,16654.0,16653.0,0.3007]
[1672635616178,1.3624,16654.0,16653.0,0.3007]
[1672635617444,0.4632,16654.0,16653.0,0.3007]
[1672635619437,1.3637,16654.0,16649.0,0.3007]
[1672635619652,0.1501,16650.0,16649.0,0.3007]
[1672635620387,0.1501,16650.0,16649.0,0.4367]
[1672635621644,0.1511,16650.0,16649.0,0.4367]
[1672635622060,0.1501,16650.0,16649.0,0.4377]
[1672635622271,0.1511,16650.0,16649.0,0.4377]
[1672635622485,0.1501,16650.0,16649.0,0.3007]
[1672635622697,0.1511,16650.0,16649.0,0.4397]
[1672635623013,0.1501,16650.0,16649.0,0.3007]
[1672635623232,0.1511,16650.0,16649.0,0.4377]
[1672635624273,0.1511,16650.0,16649.0,0.4397]
[1672635624804,0.3002,16650.0,16649.0,0.4397]
[1672635629421,0.3002,16650.0,16649.0,0.139]
[1672635629631,0.3002,16650.0,16649.0,0.4397]
[1672635634689,0.1501,16650.0,16649.0,0.4397]
[1672635636258,0.2993,16650.0,16649.0,0.4397]
[1672635639944,0.2993,16650.0,16649.0,0.43951623]
[1672635640987,0.1502,16650.0,16649.0,0.43951623]
[1672635641204,0.001,16650.0,16649.0,0.43951623]
[1672635649610,0.001,16650.0,16649.0,1.18961623]
[1672635649824,0.1501,16652.0,16650.0,0.3]
[1672635650034,0.1501,16652.0,16651.0,0.3007]
[1672635652140,0.1631,16652.0,16651.0,0.3007]
[1672635658555,0.1623,16652.0,16651.0,0.9012]
[1672635660653,0.1493,16652.0,16651.0,0.9012]
[1672635660863,0.1493,16652.0,16651.0,0.9592]
[1672635662338,0.1489,16654.0,16651.0,1.1081]
[1672635662548,0.6261,16656.0,16653.0,0.3007]
[1672635662753,0.1501,16654.0,16653.0,0.3007]
[1672635663488,0.4503,16654.0,16653.0,0.3007]
[1672635663909,0.4633,16654.0,16653.0,0.3047]
[1672635671596,0.4633,16654.0,16653.0,0.3007]
[1672635671808,0.4633,16654.0,16652.0,0.3007]
[1672635672018,0.4503,16654.0,16652.0,0.3007]
[1672635672230,0.1631,16654.0,16652.0,0.3007]
[1672635672964,0.1501,16654.0,16652.0,0.3007]
[1672635673174,0.1501,16654.0,16652.0,0.3587]
[1672635674638,0.2997,16653.0,16652.0,0.3587]
[1672635677583,0.3007,16653.0,16652.0,0.4407]
[1672635678229,0.2997,16653.0,16652.0,0.3007]
[1672635678427,0.2997,16653.0,16652.0,0.3587]
[1672635696183,0.2997,16653.0,16652.0,0.35851619]
[1672635697964,0.2997,16653.0,16652.0,0.058]
[1672635710166,0.2997,16653.0,16652.0,0.3587]
[1672635714997,0.2997,16653.0,16652.0,0.058]
[1672635715210,0.2997,16653.0,16652.0,0.3587]
[1672635719407,0.2997,16653.0,16652.0,0.058]
[1672635719620,0.2997,16653.0,16652.0,0.3587]
[1672635733387,0.2997,16653.0,16652.0,0.058]
[1672635733599,0.2997,16653.0,16652.0,0.3587]
[1672635734539,0.2997,16653.0,16652.0,0.058]
[1672635734748,0.2997,16653.0,16652.0,0.3587]
[1672635736858,0.2997,16653.0,16652.0,0.058]
[1672635737172,0.2997,16653.0,16652.0,0.3587]
[1672635737381,0.2997,16653.0,16652.0,0.058]
[1672635737803,0.2997,16653.0,16652.0,0.3587]
[1672635746425,0.2997,16653.0,16652.0,0.35859791]
[1672635748514,0.2997,16653.0,16652.0,0.05789791]
[1672635749157,0.2997,16653.0,16652.0,0.35859791]
[1672635755556,0.2997,16653.0,16652.0,0.05789791]
[1672635755983,0.2997,16653.0,16652.0,0.35859791]
[1672635759668,0.2997,16653.0,16652.0,0.05789791]
[1672635759873,0.2997,16653.0,16652.0,0.35859791]
[1672635761872,0.2997,16653.0,16652.0,0.05789791]
[1672635762083,0.2997,16653.0,16652.0,0.35859791]
[1672635764604,0.4498,16653.0,16652.0,0.35859791]
[1672635765871,0.4498,16653.0,16652.0,0.05789791]
[1672635766082,0.4498,16653.0,16652.0,0.35859791]
[1672635768081,0.4498,16653.0,16652.0,0.05789791]
[1672635768287,0.4498,16653.0,16652.0,0.35859791]
[1672635770495,0.44968835,16653.0,16652.0,0.35859791]
[1672635774595,0.29958835,16653.0,16652.0,0.35859791]
[1672635775657,0.29958835,16653.0,16652.0,0.05789791]
[1672635775968,0.29958835,16653.0,16652.0,0.35859791]
[1672635776911,0.29958835,16653.0,16652.0,0.05789791]
[1672635777121,0.29958835,16653.0,16652.0,0.35859791]
[1672635779536,0.29958835,16653.0,16652.0,0.05789791]
[1672635779751,0.29958835,16653.0,16652.0,0.35859791]
[1672635792991,0.29958835,16653.0,16652.0,0.05789791]
[1672635793201,0.29958835,16653.0,16652.0,0.35859791]
[1672635802766,0.29958835,16653.0,16652.0,0.05789791]
[1672635802969,0.29958835,16653.0,16652.0,0.35859791]
[1672635813999,0.29958835,16653.0,16652.0,0.05789791]
[1672635814215,0.29958835,16653.0,16652.0,0.35859791]
[1672635814531,0.29958835,16653.0,16652.0,0.05789791]
[1672635814743,0.29958835,16653.0,16652.0,0.35859791]
[1672635818002,0.29958835,16653.0,16652.0,0.05789791]
[1672635818212,0.29958835,16653.0,16652.0,0.35859791]
[1672635819159,0.29958835,16653.0,16652.0,0.35847753]
[1672635822417,0.29958835,16653.0,16652.0,0.05777753]
[1672635822729,0.29958835,16653.0,16652.0,0.35847753]
[1672635834602,0.1501,16653.0,16652.0,0.35847753]
[1672635847956,0.1501,16653.0,16652.0,0.05777753]
[1672635848165,0.1501,16653.0,16652.0,0.35847753]
[1672635848376,0.1501,16653.0,16652.0,0.05777753]
[1672635848586,0.1501,16653.0,16652.0,0.35847753]
[1672635849325,0.14986254,16653.0,16652.0,0.35847753]
[1672635853105,0.14986254,16653.0,16652.0,0.05777753]
[1672635853317,0.14986254,16653.0,16652.0,0.35847753]
[1672635861442,0.14986254,16653.0,16652.0,0.05777753]
[1672635861663,0.14986254,16653.0,16652.0,0.35847753]
[1672635873811,0.14986254,16653.0,16652.0,0.05777753]
[1672635874021,0.14986254,16653.0,16652.0,0.35847753]
[1672635877810,0.14986254,16653.0,16652.0,0.05777753]
[1672635878017,0.14986254,16653.0,16652.0,0.35847753]
[1672635879071,0.14986254,16653.0,16652.0,0.05777753]
[1672635879282,0.14986254,16653.0,16652.0,0.35847753]
[1672635880852,0.14986254,16653.0,16652.0,0.05777753]
[1672635881173,0.14986254,16653.0,16652.0,0.35847753]
[1672635888004,0.14986254,16653.0,16652.0,0.05777753]
[1672635888204,0.14986254,16653.0,16652.0,0.35847753]
[1672635893469,0.14986254,16653.0,16652.0,0.35841197]
[1672635893890,0.14986254,16653.0,16652.0,0.05771197]
[1672635894420,0.14986254,16653.0,16652.0,0.35841197]
[1672635895775,0.14986254,16653.0,16652.0,0.05771197]
[1672635895986,0.14986254,16653.0,16652.0,0.35841197]
[1672635897878,0.14986254,16653.0,16652.0,0.05771197]
[1672635898084,0.14986254,16653.0,16652.0,0.35841197]
[1672635899989,0.14986254,16653.0,16652.0,0.05771197]
[1672635900198,0.14986254,16653.0,16652.0,0.35841197]
[1672635913118,0.1497,16654.0,16652.0,1.0302]
[1672635913341,0.1501,16655.0,16653.0,0.7506]
[1672635913543,0.1501,16655.0,16654.0,0.8007]
[1672635914700,0.1501,16655.0,16654.0,0.8457]
[1672635920900,0.1501,16655.0,16654.0,0.545]
[1672635921116,0.1501,16655.0,16654.0,0.8457]
[1672635934778,0.1501,16655.0,16654.0,0.545]
[1672635934978,0.1501,16655.0,16654.0,0.8457]
[1672635935299,0.1501,16655.0,16654.0,0.545]
[1672635935504,0.1501,16655.0,16654.0,0.8457]
[1672635942546,0.1501,16655.0,16654.0,0.84557023]
[1672635943715,0.149,16655.0,16654.0,0.84557023]
[1672635949181,0.149,16655.0,16654.0,0.54487023]
[1672635949391,0.149,16655.0,16654.0,0.84557023]
[1672635956107,0.149,16655.0,16654.0,0.54487023]
[1672635956331,0.149,16655.0,16654.0,0.84557023]
[1672635972615,0.149,16655.0,16654.0,0.54487023]
[1672635972826,0.149,16655.0,16654.0,0.84557023]
[1672635974621,0.1501,16656.0,16654.0,0.84557023]
[1672635975872,0.1501,16656.0,16654.0,0.80057023]
[1672635976088,0.1501,16656.0,16654.0,0.84557023]
[1672635980392,0.1501,16655.0,16654.0,0.3457]
[1672635980604,0.3002,16655.0,16654.0,0.3457]
[1672635981022,0.4503,16655.0,16654.0,0.045]
[1672635981232,0.7503,16655.0,16652.0,0.3007]
[1672635981456,0.3,16655.0,16652.0,0.3007]
[1672635981667,0.6007,16655.0,16652.0,0.3007]
[1672635981877,0.6007,16655.0,16648.0,0.3093]
[1672635981878,0.9006,16652.0,16650.0,0.3007]
[1672635982081,0.3002,16651.0,16650.0,0.3007]
[1672635982293,2.2511,16651.0,16648.0,0.3007]
[1672635982499,0.1497,16649.0,16648.0,0.3007]
[1672635982916,1.3498,16649.0,16648.0,0.3007]
[1672635984184,1.3498,16649.0,16648.0,0.4067]
[1672635984593,0.4497,16649.0,16648.0,0.3007]
[1672635984808,0.4527,16649.0,16648.0,0.4067]
[1672635989132,0.4527,16649.0,16648.0,0.106]
[1672635989342,0.4527,16649.0,16648.0,0.4067]
[1672636003953,0.4527,16649.0,16648.0,0.106]
[1672636004159,0.4527,16649.0,16648.0,0.4067]
[1672636009533,0.4527,16649.0,16648.0,0.106]
[1672636009739,0.4527,16649.0,16648.0,0.4067]
[1672636010904,0.4527,16649.0,16648.0,0.106]
[1672636011105,0.4527,16649.0,16648.0,0.4067]
[1672636013315,0.4527,16649.0,16648.0,0.106]
[1672636014370,2.254,16649.0,16648.0,0.106]
[1672636022772,2.255,16649.0,16648.0,0.098]
[1672636026450,2.5557,16649.0,16648.0,0.098]
[1672636030762,2.255,16649.0,16648.0,0.098]
[1672636030973,2.5557,16649.0,16648.0,0.098]
[1672636034755,1.6558,16649.0,16648.0,0.098]
[1672636035484,1.6558,16649.0,16648.0,0.09790323]
[1672636037165,4.2085,16649.0,16648.0,0.09790323]
[1672636039581,2.5565,16649.0,16648.0,0.09790323]
[1672636055460,2.5525,16649.0,16648.0,0.018]
[1672636055881,2.6125,16649.0,16648.0,0.005]
[1672636058717,2.6105,16649.0,16648.0,0.007]
[1672636064704,4.261,16649.0,16648.0,0.007]
[1672636072174,4.261,16649.0,16644.0,0.5]
[1672636072386,0.4503,16645.0,16643.0,0.6177]
[1672636072707,0.4498,16644.0,16643.0,0.5]
[1672636074379,0.4498,16644.0,16643.0,0.583]
[1672636074702,0.4491,16644.0,16643.0,0.583]
[1672636074912,0.4551,16644.0,16643.0,0.583]
[1672636078163,4.2105,16644.0,16643.0,0.083]
[1672636078370,4.2122,16644.0,16643.0,0.083]
[1672636079009,4.2122,16644.0,16643.0,0.07819334]
[1672636079215,4.2118,16644.0,16640.0,0.00080424]
[1672636079433,1.6502,16641.0,16640.0,0.00080424]
[1672636081004,1.3642,16641.0,16640.0,0.00180424]
[1672636082788,1.3642,16641.0,16640.0,0.30180424]
[1672636084682,0.4636,16641.0,16640.0,0.30180424]
[1672636087625,0.4646,16641.0,16640.0,0.30180424]
[1672636088880,0.4646,16641.0,16640.0,0.60250424]
[1672636093404,0.4486,16641.0,16640.0,0.60150424]
[1672636093720,0.4656,16641.0,16640.0,0.60250424]
[1672636094355,0.4486,16641.0,16640.0,0.60150424]
[1672636094566,0.4656,16641.0,16640.0,0.60250424]
[1672636095929,0.4647,16641.0,16640.0,0.60250424]
[1672636103274,0.4477,16641.0,16640.0,0.60150424]
[1672636103605,0.4567,16641.0,16640.0,0.60150424]
[1672636118309,0.4567,16641.0,16640.0,0.30080424]
[1672636118626,0.4567,16641.0,16640.0,0.60150424]
[1672636121667,0.4567,16641.0,16640.0,0.30080424]
[1672636121885,0.4567,16641.0,16640.0,0.60150424]
[1672636122717,0.3075,16641.0,16640.0,0.60150424]
[1672636123036,0.1578,16641.0,16640.0,0.60150424]
[1672636124724,0.1583,16641.0,16640.0,0.60150424]
[1672636126079,0.1591,16641.0,16640.0,0.60150424]
[1672636134172,0.1591,16641.0,16640.0,0.60137756]
[1672636134600,0.158,16641.0,16640.0,0.60137756]
[1672636144580,0.158,16641.0,16640.0,0.30067756]
[1672636144899,0.158,16641.0,16640.0,0.60137756]
[1672636148579,0.158,16641.0,16640.0,0.30067756]
[1672636148897,0.158,16641.0,16640.0,0.60137756]
[1672636150473,0.158,16641.0,16640.0,0.30067756]
[1672636150677,0.158,16641.0,16640.0,0.60137756]
[1672636154673,0.1579,16641.0,16640.0,0.60137756]
[1672636164655,0.1591,16641.0,16640.0,0.60137756]
[1672636172971,0.15895932,16641.0,16640.0,0.60137756]
[1672636174445,0.15895932,16641.0,16640.0,0.30067756]
[1672636174643,0.15895932,16641.0,16640.0,0.60137756]
[1672636181598,0.15895932,16641.0,16640.0,0.30067756]
[1672636181816,0.15895932,16641.0,16640.0,0.60137756]
[1672636200738,0.15895932,16641.0,16640.0,1.20187756]
[1672636200739,0.00885932,16641.0,16640.0,1.20187756]
[1672636200941,0.1501,16644.0,16640.0,1.50207756]
[1672636201155,0.1501,16644.0,16643.0,0.3007]
[1672636203045,0.2841,16644.0,16643.0,0.3017]
[1672636204627,0.4342,16644.0,16643.0,0.3017]
[1672636208521,0.4342,16644.0,16643.0,0.001]
[1672636208831,0.4342,16644.0,16643.0,0.3017]
[1672636215659,0.4342,16644.0,16643.0,0.001]
[1672636215875,0.4342,16644.0,16643.0,0.3017]
[1672636216080,0.4342,16644.0,16643.0,0.001]
[1672636216402,0.4342,16644.0,16643.0,0.3017]
[1672636223036,0.4342,16644.0,16643.0,0.001]
[1672636223238,0.4342,16644.0,16643.0,0.3017]
[1672636244573,0.2841,16644.0,16643.0,0.3017]
[1672636245424,0.2841,16644.0,16643.0,0.30149645]
[1672636258972,0.2841,16644.0,16643.0,0.00079645]
[1672636259293,0.2841,16644.0,16643.0,0.30149645]
[1672636259714,0.2841,16644.0,16643.0,0.00079645]
[1672636259920,0.2841,16644.0,16643.0,0.30149645]
[1672636264652,0.4333,16644.0,16643.0,0.30149645]
[1672636268746,0.4333,16644.0,16643.0,0.00079645]
[1672636269278,0.4333,16644.0,16643.0,0.30149645]
[1672636269694,0.4333,16644.0,16643.0,0.00079645]
[1672636269902,0.4333,16644.0,16643.0,0.30149645]
[1672636274642,0.4333,16644.0,16643.0,0.00079645]
[1672636274848,0.4333,16644.0,16643.0,0.30149645]
[1672636284111,0.4333,16644.0,16643.0,0.00079645]
[1672636284312,0.4333,16644.0,16643.0,0.30149645]
[1672636294504,0.4333,16644.0,16643.0,0.30142913]
[1672636294724,0.2841,16644.0,16643.0,0.30142913]
[1672636304816,0.4333,16644.0,16643.0,0.30142913]
[1672636314579,0.2841,16644.0,16643.0,0.30142913]
[1672636316890,0.2841,16644.0,16643.0,0.00072913]
[1672636317106,0.2841,16644.0,16643.0,0.30142913]
[1672636318358,0.2841,16644.0,16643.0,0.00072913]
[1672636318572,0.2841,16644.0,16643.0,0.30142913]
[1672636319729,0.2841,16644.0,16643.0,0.00072913]
[1672636319946,0.2841,16644.0,16643.0,0.30142913]
[1672636334663,0.4342,16644.0,16643.0,0.30142913]
[1672636342138,0.4342,16644.0,16643.0,0.30119702]
[1672636343391,0.4342,16644.0,16643.0,0.00049702]
[1672636343606,0.4342,16644.0,16643.0,0.30119702]
[1672636344759,0.4342,16644.0,16643.0,0.00049702]
[1672636344961,0.4342,16644.0,16643.0,0.30119702]
[1672636345390,0.4342,16644.0,16643.0,0.00049702]
[1672636345811,0.4342,16644.0,16643.0,0.30119702]
[1672636355908,0.4342,16644.0,16643.0,0.00049702]
[1672636356217,0.4342,16644.0,16643.0,0.30119702]
[1672636356425,0.4342,16644.0,16643.0,0.00049702]
[1672636356635,0.4342,16644.0,16643.0,0.30119702]
[1672636357474,0.4342,16644.0,16643.0,0.00049702]
[1672636357682,0.4342,16644.0,16643.0,0.30119702]
[1672636358530,0.4342,16644.0,16643.0,0.00049702]
[1672636358731,0.4342,16644.0,16643.0,0.30119702]
[1672636360628,0.4342,16644.0,16643.0,0.00049702]
[1672636360837,0.4342,16644.0,16643.0,0.30119702]
[1672636366932,0.4342,16644.0,16643.0,0.00049702]
[1672636367141,0.4342,16644.0,16643.0,0.30119702]
[1672636369667,0.4342,16644.0,16643.0,0.00049702]
[1672636369875,0.4342,16644.0,16643.0,0.30119702]
[1672636370612,0.4342,16644.0,16643.0,0.00049702]
[1672636371031,0.4342,16644.0,16643.0,0.30119702]
[1672636380497,0.4342,16644.0,16643.0,0.00049702]
[1672636380707,0.4342,16644.0,16643.0,0.30119702]
[1672636385016,0.4342,16644.0,16643.0,0.00049702]
[1672636385214,0.4342,16644.0,16643.0,0.30119702]
[1672636388473,0.4342,16644.0,16643.0,0.30096028]
[1672636389528,0.4342,16644.0,16643.0,0.00026028]
[1672636389944,0.4342,16644.0,16643.0,0.30096028]
[1672636392368,0.5843,16644.0,16643.0,0.30096028]
[1672636402353,1.4844,16644.0,16643.0,0.00026028]
[1672636404779,0.5843,16644.0,16643.0,0.00026028]
[1672636406147,0.5843,16644.0,16643.0,0.30096028]
[1672636411404,0.5843,16644.0,16643.0,0.00026028]
[1672636411615,0.5843,16644.0,16643.0,0.30096028]
[1672636421915,0.5843,16644.0,16643.0,0.00026028]
[1672636422222,0.5843,16644.0,16643.0,0.30096028]
[1672636423064,0.5843,16644.0,16643.0,0.00026028]
[1672636423274,0.5843,16644.0,16643.0,0.30096028]
[1672636430831,0.5843,16644.0,16643.0,0.00026028]
[1672636438304,0.5843,16644.0,16643.0,0.00015128]
[1672636492024,0.5843,16644.0,16643.0,8.845e-05]
[1672636495937,0.5843,16644.0,16643.0,0.30078845]
[1672636499638,0.5843,16644.0,16643.0,8.845e-05]
[1672636499817,0.5843,16644.0,16643.0,0.30078845]
[1672636511583,0.5843,16644.0,16643.0,8.845e-05]
[1672636511788,0.5843,16644.0,16643.0,0.30078845]
[1672636512739,0.5843,16644.0,16643.0,8.845e-05]
[1672636512945,0.5843,16644.0,16643.0,0.30078845]
[1672636517460,0.5843,16644.0,16643.0,8.845e-05]
[1672636517874,0.5843,16644.0,16643.0,0.30078845]
[1672636518510,0.5843,16644.0,16643.0,8.845e-05]
[1672636518720,0.5843,16644.0,16643.0,0.30078845]
[1672636520603,0.5843,16644.0,16643.0,8.845e-05]
[1672636521859,0.5843,16644.0,16643.0,0.30078845]
[1672636524490,0.5843,16644.0,16643.0,8.845e-05]
[1672636524699,0.5843,16644.0,16643.0,0.30078845]
[1672636527959,0.5836,16644.0,16643.0,0.30078845]
[1672636531743,0.5836,16644.0,16643.0,8.845e-05]
[1672636540154,0.00010505,16643.0,16642.0,0.3007]
[1672636540364,0.29960505,16643.0,16642.0,0.3007]
[1672636541100,0.29960505,16643.0,16642.0,0.3017]
[1672636541308,0.43060505,16643.0,16642.0,0.3017]
[1672636550871,0.43060505,16643.0,16642.0,0.001]
[1672636557274,0.73130505,16643.0,16640.0,0.00067756]
[1672636557593,0.58190505,16643.0,16640.0,0.00067756]
[1672636558012,1.3509,16641.0,16640.0,0.00067756]
[1672636559171,1.3509,16641.0,16640.0,0.00867756]
[1672636559389,1.3509,16641.0,16640.0,0.00067756]
[1672636559697,1.3599,16641.0,16640.0,0.00867756]
[1672636564625,0.4593,16641.0,16640.0,0.00867756]
[1672636574835,1.3599,16641.0,16640.0,0.00867756]
[1672636575038,1.3599,16641.0,16640.0,0.30937756]
[1672636578841,1.3599,16641.0,16640.0,0.00867756]
[1672636579038,1.3599,16641.0,16640.0,0.30937756]
[1672636579888,1.3599,16641.0,16640.0,0.00867756]
[1672636580085,1.3599,16641.0,16640.0,0.30937756]
[1672636580717,1.3599,16641.0,16640.0,0.00867756]
[1672636580931,1.3599,16641.0,16640.0,0.30937756]
[1672636581572,1.3599,16641.0,16640.0,0.00867756]
[1672636581883,1.3599,16641.0,16640.0,0.30937756]
[1672636583252,1.3599,16641.0,16640.0,0.00867756]
[1672636584714,1.3615,16641.0,16640.0,0.00867756]
[1672636586718,1.6622,16641.0,16640.0,0.00867756]
[1672636589550,1.3615,16641.0,16640.0,0.00867756]
[1672636594605,1.3605,16641.0,16640.0,0.00867756]
[1672636602170,1.3605,16641.0,16640.0,0.00855498]
[1672636603647,1.6612,16641.0,16640.0,0.00855498]
[1672636604485,1.3605,16641.0,16640.0,0.00855498]
[1672636604700,2.5621,16641.0,16640.0,0.00855498]
[1672636607124,2.5621,16641.0,16640.0,0.006]
[1672636607429,2.5621,16641.0,16637.0,0.6217]
[1672636607430,2.5531,16641.0,16637.0,0.6217]
[1672636607640,0.3002,16638.0,16637.0,0.6217]
[1672636607854,0.3002,16638.0,16637.0,0.3007]
[1672636608901,0.3162,16638.0,16637.0,0.3077]
[1672636610376,0.3162,16638.0,16637.0,0.30776]
[1672636611530,0.31626,16638.0,16637.0,0.30776]
[1672636614689,0.46636,16638.0,16637.0,0.00706]
[1672636614902,0.46636,16638.0,16637.0,0.30776]
[1672636615112,0.46636,16638.0,16637.0,0.00706]
[1672636615319,0.46636,16638.0,16637.0,0.30776]
[1672636629611,0.31626,16638.0,16637.0,0.30776]
[1672636630673,0.16616,16638.0,16637.0,0.30776]
[1672636632143,0.16616,16638.0,16637.0,0.60776]
[1672636632764,0.1497,16641.0,16637.0,0.75746]
[1672636632976,0.1494,16639.0,16638.0,0.3]
[1672636633184,0.1494,16639.0,16638.0,0.6007]
[1672636634669,0.1501,16639.0,16638.0,0.6007]
[1672636635404,0.1661,16639.0,16638.0,0.6227]
[1672636636243,0.1641,16639.0,16638.0,0.6227]
[1672636636550,0.4643,16639.0,16638.0,0.3227]